[Event "Early-Titled-Tuesday-Blitz-March-26-2024"]
[Site "Chess.com"]
[Date "2024.03.26"]
[Round "10"]
[White "DinaBelenkaya"]
[Black "KnightmareJoker"]
[Result "1-0"]
[WhiteElo "2473"]
[BlackElo "2315"]
[TimeControl "180+1"]
[EndTime "9:53:59 PDT"]
[Termination "DinaBelenkaya won on time"]

1. Nf3 {[%clk 0:03:00]} 1... d5 {[%clk 0:02:59.8]} 2. g3 {[%clk 0:03:00.1]} 2...
Nf6 {[%clk 0:02:59.9]} 3. Bg2 {[%clk 0:03:00.1]} 3... e6 {[%clk 0:03:00.5]} 4.
d3 {[%clk 0:03:00.2]} 4... Be7 {[%clk 0:03:01.1]} 5. Nbd2 {[%clk 0:03:00.4]}
5... O-O {[%clk 0:03:01.4]} 6. O-O {[%clk 0:03:00.9]} 6... c5 {[%clk 0:03:02]}
7. e4 {[%clk 0:03:00.3]} 7... d4 {[%clk 0:03:00.5]} 8. e5 {[%clk 0:02:48.6]}
8... Nd5 {[%clk 0:02:59.2]} 9. Ne4 {[%clk 0:02:48.9]} 9... Nc6 {[%clk
0:02:58.1]} 10. Re1 {[%clk 0:02:09.7]} 10... h6 {[%clk 0:02:57.8]} 11. c4 {[%clk
0:02:00.9]} 11... dxc3 {[%clk 0:02:46.1]} 12. bxc3 {[%clk 0:02:01.8]} 12... f5
{[%clk 0:02:45.5]} 13. exf6 {[%clk 0:01:57]} 13... Bxf6 {[%clk 0:02:43.2]} 14.
Nxf6+ {[%clk 0:01:56]} 14... Qxf6 {[%clk 0:02:43.1]} 15. Bb2 {[%clk 0:01:41.8]}
15... g5 {[%clk 0:02:20.4]} 16. h3 {[%clk 0:01:32.7]} 16... Nb6 {[%clk
0:02:04.5]} 17. Qc2 {[%clk 0:01:30.4]} 17... c4 {[%clk 0:02:03.5]} 18. d4 {[%clk
0:01:29.2]} 18... Nd5 {[%clk 0:01:56]} 19. Ba3 {[%clk 0:01:28.1]} 19... Re8
{[%clk 0:01:53.9]} 20. Ne5 {[%clk 0:01:28]} 20... Nxe5 {[%clk 0:01:53.5]} 21.
Rxe5 {[%clk 0:01:27.8]} 21... Bd7 {[%clk 0:01:51.9]} 22. Rae1 {[%clk 0:01:24.3]}
22... Bc6 {[%clk 0:01:42.2]} 23. Kh2 {[%clk 0:00:54.9]} 23... Kg7 {[%clk
0:01:33.4]} 24. Qd2 {[%clk 0:00:43.7]} 24... b5 {[%clk 0:01:22.6]} 25. Rg1
{[%clk 0:00:36.2]} 25... a5 {[%clk 0:01:13.6]} 26. f4 {[%clk 0:00:36]} 26...
gxf4 {[%clk 0:01:06.4]} 27. gxf4 {[%clk 0:00:36.9]} 27... Kh8 {[%clk 0:01:00.6]}
28. f5 {[%clk 0:00:22.6]} 28... b4 {[%clk 0:00:51.6]} 29. Bc1 {[%clk 0:00:22.3]}
29... bxc3 {[%clk 0:00:50.8]} 30. Qxh6+ {[%clk 0:00:22.4]} 30... Qxh6 {[%clk
0:00:50.7]} 31. Bxh6 {[%clk 0:00:23.3]} 31... exf5 {[%clk 0:00:46.5]} 32. Bxd5
{[%clk 0:00:23.1]} 32... Rxe5 {[%clk 0:00:46.9]} 33. Bxc6 {[%clk 0:00:20.4]}
33... Re2+ {[%clk 0:00:46.2]} 34. Bg2 {[%clk 0:00:20.5]} 34... Rg8 {[%clk
0:00:45.6]} 35. Kh1 {[%clk 0:00:19.6]} 35... c2 {[%clk 0:00:45]} 36. Bf4 {[%clk
0:00:19.4]} 36... Kh7 {[%clk 0:00:44]} 37. d5 {[%clk 0:00:14.1]} 37... Rf2
{[%clk 0:00:36]} 38. Be3 {[%clk 0:00:13]} 38... Re2 {[%clk 0:00:30.2]} 39. Bf4
{[%clk 0:00:13.2]} 39... Rge8 {[%clk 0:00:26.6]} 40. d6 {[%clk 0:00:12.8]} 40...
Re1 {[%clk 0:00:27]} 41. d7 {[%clk 0:00:12.5]} 41... Rxg1+ {[%clk 0:00:23.3]}
42. Kxg1 {[%clk 0:00:13.4]} 42... Re1+ {[%clk 0:00:23]} 43. Kh2 {[%clk
0:00:13.5]} 43... Rd1 {[%clk 0:00:23.1]} 44. Bc6 {[%clk 0:00:13.6]} 44... c3
{[%clk 0:00:19.6]} 45. Kg3 {[%clk 0:00:13.6]} 45... Rd3+ {[%clk 0:00:19.3]} 46.
Kf2 {[%clk 0:00:13.6]} 46... Kg7 {[%clk 0:00:12.2]} 47. h4 {[%clk 0:00:14]}
47... Kf7 {[%clk 0:00:12]} 48. h5 {[%clk 0:00:14.5]} 48... Ke7 {[%clk
0:00:08.7]} 49. Bg5+ {[%clk 0:00:14.6]} 49... Kf7 {[%clk 0:00:08.6]} 50. h6
{[%clk 0:00:15]} 50... Kg6 {[%clk 0:00:08.8]} 51. Bf4 {[%clk 0:00:15.3]} 51...
Rd2+ {[%clk 0:00:06.8]} 52. Ke1 {[%clk 0:00:14.9]} 52... Rd1+ {[%clk 0:00:06.5]}
53. Ke2 {[%clk 0:00:15.4]} 53... Rd4 {[%clk 0:00:03.5]} 54. Be3 {[%clk
0:00:12.6]} 54... Rh4 {[%clk 0:00:03.2]} 55. Kd3 {[%clk 0:00:12]} 55... c1=Q
{[%clk 0:00:02.3]} 56. Bxc1 {[%clk 0:00:11.9]} 56... Rh1 {[%clk 0:00:01.6]} 57.
Kc2 {[%clk 0:00:11.9]} 1-0

[Event "Early-Titled-Tuesday-Blitz-March-26-2024"]
[Site "Chess.com"]
[Date "2024.03.26"]
[Round "10"]
[White "BallottiLuca"]
[Black "AjedrezenMadrid"]
[Result "0-1"]
[WhiteElo "2358"]
[BlackElo "2541"]
[TimeControl "180+1"]
[EndTime "9:53:59 PDT"]
[Termination "AjedrezenMadrid won on time"]

1. d4 {[%clk 0:03:00.9]} 1... d5 {[%clk 0:02:58.4]} 2. c4 {[%clk 0:03:00.7]}
2... e6 {[%clk 0:02:56.9]} 3. Nc3 {[%clk 0:03:00.9]} 3... Nf6 {[%clk 0:02:56.1]}
4. Nf3 {[%clk 0:02:59.4]} 4... Nbd7 {[%clk 0:02:52.2]} 5. Bf4 {[%clk 0:02:54.7]}
5... c6 {[%clk 0:02:40.1]} 6. e3 {[%clk 0:02:51.6]} 6... Be7 {[%clk 0:02:38.7]}
7. h3 {[%clk 0:02:50.2]} 7... O-O {[%clk 0:02:37.3]} 8. Qc2 {[%clk 0:02:50.1]}
8... a6 {[%clk 0:02:28.9]} 9. Rd1 {[%clk 0:02:45.5]} 9... dxc4 {[%clk
0:02:27.5]} 10. Bxc4 {[%clk 0:02:42.7]} 10... b5 {[%clk 0:02:27.8]} 11. Bd3
{[%clk 0:02:41]} 11... Bb7 {[%clk 0:02:27.6]} 12. O-O {[%clk 0:02:38]} 12... Qb6
{[%clk 0:02:24.4]} 13. Ne5 {[%clk 0:02:27.5]} 13... c5 {[%clk 0:02:17.9]} 14.
Nxd7 {[%clk 0:02:10.5]} 14... Nxd7 {[%clk 0:02:17.9]} 15. Bxh7+ {[%clk
0:02:10.7]} 15... Kh8 {[%clk 0:02:18.4]} 16. Be4 {[%clk 0:02:10.6]} 16... cxd4
{[%clk 0:02:16.4]} 17. Rxd4 {[%clk 0:02:02.1]} 17... Nf6 {[%clk 0:02:13.6]} 18.
Bxb7 {[%clk 0:02:01.2]} 18... Qxb7 {[%clk 0:02:14.3]} 19. Ne4 {[%clk 0:01:56.3]}
19... Rac8 {[%clk 0:02:11.4]} 20. Qb1 {[%clk 0:01:48.4]} 20... Rc4 {[%clk
0:02:09.2]} 21. Rxc4 {[%clk 0:01:43.5]} 21... bxc4 {[%clk 0:02:10.1]} 22. Nd6
{[%clk 0:01:37.5]} 22... Qc6 {[%clk 0:02:00.7]} 23. Rd1 {[%clk 0:01:35.5]} 23...
Kg8 {[%clk 0:01:57.4]} 24. Qc2 {[%clk 0:01:30.6]} 24... Rd8 {[%clk 0:01:43.2]}
25. Qd2 {[%clk 0:01:00.2]} 25... Ne4 {[%clk 0:01:39]} 26. Nxe4 {[%clk
0:00:58.4]} 26... Rxd2 {[%clk 0:01:37.8]} 27. Nxd2 {[%clk 0:00:59.3]} 27... c3
{[%clk 0:01:36.4]} 28. bxc3 {[%clk 0:00:47.7]} 28... Qxc3 {[%clk 0:01:37.3]} 29.
Nf3 {[%clk 0:00:43.2]} 29... Bf6 {[%clk 0:01:34.9]} 30. e4 {[%clk 0:00:27.9]}
30... Qc2 {[%clk 0:01:26.6]} 31. Rd2 {[%clk 0:00:25.5]} 31... Qxe4 {[%clk
0:01:25.9]} 32. Be3 {[%clk 0:00:24.1]} 32... a5 {[%clk 0:01:25.4]} 33. Kh2
{[%clk 0:00:21.3]} 33... a4 {[%clk 0:01:25.1]} 34. Bd4 {[%clk 0:00:17.2]} 34...
a3 {[%clk 0:01:10.4]} 35. Bxf6 {[%clk 0:00:16.5]} 35... gxf6 {[%clk 0:01:11.3]}
36. Kg1 {[%clk 0:00:15.2]} 36... Kg7 {[%clk 0:01:06]} 37. Kh2 {[%clk 0:00:15.3]}
37... f5 {[%clk 0:01:01.6]} 38. Kg1 {[%clk 0:00:15.2]} 38... Kf6 {[%clk
0:01:01.5]} 39. Kf1 {[%clk 0:00:14.6]} 39... Qb1+ {[%clk 0:01:00]} 40. Ke2
{[%clk 0:00:13.5]} 40... e5 {[%clk 0:00:57.8]} 41. h4 {[%clk 0:00:09.9]} 41...
e4 {[%clk 0:00:55.1]} 42. Ng5 {[%clk 0:00:10.1]} 42... Qb5+ {[%clk 0:00:48.8]}
43. Ke1 {[%clk 0:00:10.2]} 43... Qc5 {[%clk 0:00:42.2]} 44. Ke2 {[%clk
0:00:06.8]} 44... Qc4+ {[%clk 0:00:33.3]} 45. Ke1 {[%clk 0:00:07.1]} 45... f4
{[%clk 0:00:32.2]} 46. Rd6+ {[%clk 0:00:04.2]} 46... Ke7 {[%clk 0:00:30.9]} 47.
Rd2 {[%clk 0:00:03.7]} 47... f5 {[%clk 0:00:25.9]} 48. g3 {[%clk 0:00:02.6]}
48... f3 {[%clk 0:00:23.7]} 49. Kd1 {[%clk 0:00:01.9]} 49... Qf1+ {[%clk
0:00:23]} 50. Kc2 {[%clk 0:00:02.1]} 50... Qc4+ {[%clk 0:00:22.4]} 51. Kd1
{[%clk 0:00:01.7]} 51... Qb4 {[%clk 0:00:21.3]} 52. Rc2 {[%clk 0:00:01.9]} 52...
Qb1+ {[%clk 0:00:19.1]} 53. Kd2 {[%clk 0:00:02.1]} 53... Qf1 {[%clk 0:00:19]}
54. Nh7 {[%clk 0:00:01]} 54... Qd3+ {[%clk 0:00:17.7]} 0-1

[Event "Early-Titled-Tuesday-Blitz-March-26-2024"]
[Site "Chess.com"]
[Date "2024.03.26"]
[Round "10"]
[White "Aslanov_Umid"]
[Black "Zhani-Z"]
[Result "0-1"]
[WhiteElo "2606"]
[BlackElo "2322"]
[TimeControl "180+1"]
[EndTime "9:54:03 PDT"]
[Termination "Zhani-Z won by checkmate"]

1. e4 {[%clk 0:03:00.9]} 1... e5 {[%clk 0:02:57]} 2. Nf3 {[%clk 0:03:00.5]} 2...
Nc6 {[%clk 0:02:57.5]} 3. Bc4 {[%clk 0:03:01.1]} 3... Bc5 {[%clk 0:02:56.5]} 4.
O-O {[%clk 0:03:01.3]} 4... d6 {[%clk 0:02:56.2]} 5. c3 {[%clk 0:03:01.2]} 5...
Qf6 {[%clk 0:02:55.3]} 6. d3 {[%clk 0:02:59.1]} 6... h6 {[%clk 0:02:54.2]} 7. a4
{[%clk 0:02:59]} 7... a5 {[%clk 0:02:47.5]} 8. Be3 {[%clk 0:02:58.5]} 8... Nge7
{[%clk 0:02:47.2]} 9. d4 {[%clk 0:02:53.7]} 9... Bb6 {[%clk 0:02:45.1]} 10. dxe5
{[%clk 0:02:09.1]} 10... dxe5 {[%clk 0:02:45.1]} 11. Bxb6 {[%clk 0:02:09.3]}
11... cxb6 {[%clk 0:02:45.8]} 12. Qb3 {[%clk 0:02:04.8]} 12... O-O {[%clk
0:02:37.4]} 13. Qxb6 {[%clk 0:01:58.4]} 13... Ng6 {[%clk 0:02:37]} 14. Nbd2
{[%clk 0:01:31.5]} 14... Nf4 {[%clk 0:02:32.8]} 15. Rfe1 {[%clk 0:01:20]} 15...
Bg4 {[%clk 0:02:21.1]} 16. Qe3 {[%clk 0:01:06]} 16... Rad8 {[%clk 0:02:16.9]}
17. Nf1 {[%clk 0:01:04.4]} 17... Rd6 {[%clk 0:02:09.7]} 18. Ng3 {[%clk
0:00:56.2]} 18... Rfd8 {[%clk 0:02:05.1]} 19. h3 {[%clk 0:00:39.4]} 19... Nxh3+
{[%clk 0:01:51.8]} 20. gxh3 {[%clk 0:00:39.3]} 20... Bxf3 {[%clk 0:01:52.1]} 21.
Kh2 {[%clk 0:00:36.4]} 21... Qf4 {[%clk 0:01:39.5]} 22. Bd5 {[%clk 0:00:21.4]}
22... R6d7 {[%clk 0:01:24.9]} 23. Qxf4 {[%clk 0:00:17.1]} 23... exf4 {[%clk
0:01:25.1]} 24. Nf5 {[%clk 0:00:17.7]} 24... g6 {[%clk 0:01:16.6]} 25. Nh4
{[%clk 0:00:11.8]} 25... Ne5 {[%clk 0:01:14.9]} 26. Ng2 {[%clk 0:00:08]} 26...
Bxg2 {[%clk 0:01:13.5]} 27. Kxg2 {[%clk 0:00:08.2]} 27... Kg7 {[%clk 0:01:09.6]}
28. Rad1 {[%clk 0:00:08.3]} 28... f5 {[%clk 0:01:04.2]} 29. f3 {[%clk
0:00:07.3]} 29... fxe4 {[%clk 0:01:02.3]} 30. fxe4 {[%clk 0:00:08.2]} 30... g5
{[%clk 0:01:01.5]} 31. Rd4 {[%clk 0:00:08.2]} 31... h5 {[%clk 0:00:59.6]} 32.
Red1 {[%clk 0:00:08.8]} 32... g4 {[%clk 0:00:33.8]} 33. hxg4 {[%clk 0:00:09.7]}
33... hxg4 {[%clk 0:00:33.9]} 34. Be6 {[%clk 0:00:09.2]} 34... Rxd4 {[%clk
0:00:28.7]} 35. cxd4 {[%clk 0:00:10.1]} 35... g3 {[%clk 0:00:18]} 36. d5 {[%clk
0:00:03.8]} 36... Rd6 {[%clk 0:00:16.9]} 37. Rc1 {[%clk 0:00:03.7]} 37... Rb6
{[%clk 0:00:16.9]} 38. Rc7+ {[%clk 0:00:04.2]} 38... Kf6 {[%clk 0:00:16.8]} 39.
Rc2 {[%clk 0:00:04.9]} 39... Rb3 {[%clk 0:00:16.8]} 40. d6 {[%clk 0:00:03.5]}
40... Rd3 {[%clk 0:00:16.1]} 41. Bd5 {[%clk 0:00:03.5]} 41... Nc6 {[%clk
0:00:12.2]} 42. Bxc6 {[%clk 0:00:03.3]} 42... bxc6 {[%clk 0:00:12.4]} 43. Rxc6
{[%clk 0:00:04.1]} 43... Ke5 {[%clk 0:00:13]} 44. d7 {[%clk 0:00:03.9]} 44...
Rxd7 {[%clk 0:00:13.1]} 45. Rc5+ {[%clk 0:00:04.6]} 45... Kxe4 {[%clk 0:00:13]}
46. Rc4+ {[%clk 0:00:05.5]} 46... Rd4 {[%clk 0:00:12.9]} 47. Rxd4+ {[%clk
0:00:04.8]} 47... Kxd4 {[%clk 0:00:13.1]} 48. Kf3 {[%clk 0:00:05.5]} 48... Kc4
{[%clk 0:00:13.1]} 49. Kxf4 {[%clk 0:00:04.5]} 49... g2 {[%clk 0:00:13]} 50. Ke3
{[%clk 0:00:05.4]} 50... g1=Q+ {[%clk 0:00:13.4]} 51. Kd2 {[%clk 0:00:06.3]}
51... Qd4+ {[%clk 0:00:13.5]} 52. Kc2 {[%clk 0:00:07.2]} 52... Kb4 {[%clk
0:00:14]} 53. Kb1 {[%clk 0:00:08.1]} 53... Qd1+ {[%clk 0:00:13.7]} 54. Ka2
{[%clk 0:00:08.1]} 54... Qxa4+ {[%clk 0:00:14.3]} 55. Kb1 {[%clk 0:00:08.8]}
55... Qb3 {[%clk 0:00:13.8]} 56. Ka1 {[%clk 0:00:09.1]} 56... a4 {[%clk
0:00:13.6]} 57. Kb1 {[%clk 0:00:09.8]} 57... a3 {[%clk 0:00:14]} 58. Kc1 {[%clk
0:00:10.7]} 58... Qxb2+ {[%clk 0:00:14.4]} 59. Kd1 {[%clk 0:00:11.1]} 59... a2
{[%clk 0:00:15.3]} 60. Ke1 {[%clk 0:00:12]} 60... a1=Q# {[%clk 0:00:16.2]} 0-1

[Event "Early-Titled-Tuesday-Blitz-March-26-2024"]
[Site "Chess.com"]
[Date "2024.03.26"]
[Round "10"]
[White "AA95"]
[Black "Irina_Mikhaylova"]
[Result "1-0"]
[WhiteElo "2486"]
[BlackElo "2341"]
[TimeControl "180+1"]
[EndTime "9:54:06 PDT"]
[Termination "AA95 won by resignation"]

1. Nf3 {[%clk 0:03:00.9]} 1... Nf6 {[%clk 0:02:59.8]} 2. g3 {[%clk 0:03:01.3]}
2... g6 {[%clk 0:03:00.1]} 3. Bg2 {[%clk 0:03:01.8]} 3... Bg7 {[%clk 0:03:00.6]}
4. O-O {[%clk 0:03:02.5]} 4... O-O {[%clk 0:03:01.1]} 5. d4 {[%clk 0:03:03]}
5... d5 {[%clk 0:03:01.6]} 6. c4 {[%clk 0:03:03.3]} 6... c6 {[%clk 0:03:02.2]}
7. cxd5 {[%clk 0:03:02.9]} 7... cxd5 {[%clk 0:03:03.1]} 8. Nc3 {[%clk
0:03:03.3]} 8... e6 {[%clk 0:03:03]} 9. Bf4 {[%clk 0:03:02.8]} 9... Nc6 {[%clk
0:03:02.9]} 10. Qd3 {[%clk 0:03:01.2]} 10... a6 {[%clk 0:02:37]} 11. Rfc1 {[%clk
0:03:00.7]} 11... Bd7 {[%clk 0:02:32.9]} 12. Ne5 {[%clk 0:02:57]} 12... Nxe5
{[%clk 0:02:20.1]} 13. Bxe5 {[%clk 0:02:53.8]} 13... Rc8 {[%clk 0:02:16.4]} 14.
a3 {[%clk 0:02:33.4]} 14... Bc6 {[%clk 0:02:05.3]} 15. Rc2 {[%clk 0:02:30.2]}
15... Nd7 {[%clk 0:01:36.8]} 16. Bd6 {[%clk 0:02:08]} 16... Re8 {[%clk 0:01:36]}
17. Rac1 {[%clk 0:02:07.2]} 17... Bf8 {[%clk 0:01:25.5]} 18. Bxf8 {[%clk
0:02:07]} 18... Nxf8 {[%clk 0:01:25.5]} 19. h4 {[%clk 0:01:53.3]} 19... Nd7
{[%clk 0:01:08]} 20. Na2 {[%clk 0:01:52.1]} 20... Nb6 {[%clk 0:01:01.5]} 21. b3
{[%clk 0:01:43.2]} 21... Bb5 {[%clk 0:00:42.9]} 22. Rxc8 {[%clk 0:01:42.3]}
22... Nxc8 {[%clk 0:00:42.9]} 23. Qd2 {[%clk 0:01:38.9]} 23... Nd6 {[%clk
0:00:40.6]} 24. a4 {[%clk 0:01:37.9]} 24... Bd7 {[%clk 0:00:37]} 25. Qb4 {[%clk
0:01:35.4]} 25... Nf5 {[%clk 0:00:34]} 26. e3 {[%clk 0:01:23.4]} 26... Qb8
{[%clk 0:00:33.5]} 27. Bh3 {[%clk 0:01:10.2]} 27... Nd6 {[%clk 0:00:30.6]} 28.
Qb6 {[%clk 0:00:55.1]} 28... Ne4 {[%clk 0:00:30.3]} 29. Rc7 {[%clk 0:00:52.1]}
29... Bc6 {[%clk 0:00:27.9]} 30. Nb4 {[%clk 0:00:48.9]} 30... Rc8 {[%clk
0:00:28.1]} 31. Rxc8+ {[%clk 0:00:25.7]} 31... Qxc8 {[%clk 0:00:28.4]} 32. Bg2
{[%clk 0:00:17.3]} 32... Nd6 {[%clk 0:00:23.1]} 33. Nd3 {[%clk 0:00:17.2]} 33...
Ne8 {[%clk 0:00:18.8]} 34. Nc5 {[%clk 0:00:17]} 34... Qc7 {[%clk 0:00:19.2]} 35.
Qa7 {[%clk 0:00:16.3]} 35... Nd6 {[%clk 0:00:18.3]} 36. Nxa6 {[%clk 0:00:11.7]}
36... Qd7 {[%clk 0:00:18.4]} 37. Nc5 {[%clk 0:00:11.4]} 37... Qe7 {[%clk
0:00:18.1]} 38. Qb8+ {[%clk 0:00:10.9]} 38... Kg7 {[%clk 0:00:17.6]} 39. Bf1
{[%clk 0:00:10.5]} 39... Nf5 {[%clk 0:00:17.1]} 40. Qe5+ {[%clk 0:00:09.7]}
40... Kg8 {[%clk 0:00:15.6]} 41. Qb8+ {[%clk 0:00:09]} 41... Kg7 {[%clk
0:00:15.3]} 42. b4 {[%clk 0:00:09.7]} 42... Be8 {[%clk 0:00:12.1]} 43. b5 {[%clk
0:00:09.2]} 43... b6 {[%clk 0:00:11.7]} 44. Qxb6 {[%clk 0:00:08.8]} 44... Nxh4
{[%clk 0:00:12.1]} 45. Be2 {[%clk 0:00:07.6]} 45... Nf5 {[%clk 0:00:11.3]} 46.
Qb8 {[%clk 0:00:07.5]} 46... Nd6 {[%clk 0:00:09.3]} 47. a5 {[%clk 0:00:07.2]}
47... Nc4 {[%clk 0:00:07.5]} 48. a6 {[%clk 0:00:06.5]} 48... Bxb5 {[%clk
0:00:07.2]} 49. Qxb5 {[%clk 0:00:05.9]} 49... Qg5 {[%clk 0:00:04.3]} 50. Qb8
{[%clk 0:00:06]} 50... Nxe3 {[%clk 0:00:04.1]} 51. Qe5+ {[%clk 0:00:05.8]} 51...
Qxe5 {[%clk 0:00:04.4]} 52. dxe5 {[%clk 0:00:06.4]} 52... Nc4 {[%clk 0:00:04.7]}
53. Bxc4 {[%clk 0:00:06.7]} 53... dxc4 {[%clk 0:00:05.2]} 54. a7 {[%clk
0:00:07.5]} 1-0

[Event "Early-Titled-Tuesday-Blitz-March-26-2024"]
[Site "Chess.com"]
[Date "2024.03.26"]
[Round "10"]
[White "LeoWin2012"]
[Black "PawnEatingZombie"]
[Result "1-0"]
[WhiteElo "2287"]
[BlackElo "2180"]
[TimeControl "180+1"]
[EndTime "9:54:06 PDT"]
[Termination "LeoWin2012 won by resignation"]

1. e4 {[%clk 0:03:00.9]} 1... d6 {[%clk 0:02:57.5]} 2. d4 {[%clk 0:02:59.6]}
2... Nf6 {[%clk 0:02:58.1]} 3. Nc3 {[%clk 0:02:58.5]} 3... e5 {[%clk 0:02:57.9]}
4. dxe5 {[%clk 0:02:57.1]} 4... dxe5 {[%clk 0:02:57.4]} 5. Qxd8+ {[%clk
0:02:57.6]} 5... Kxd8 {[%clk 0:02:58.2]} 6. Bc4 {[%clk 0:02:56.8]} 6... Be6
{[%clk 0:02:58.3]} 7. Bxe6 {[%clk 0:02:56.5]} 7... fxe6 {[%clk 0:02:59.2]} 8. f3
{[%clk 0:02:53.6]} 8... Bd6 {[%clk 0:02:59]} 9. Be3 {[%clk 0:02:52.6]} 9... Nc6
{[%clk 0:02:58.9]} 10. Nge2 {[%clk 0:02:51.7]} 10... Ke7 {[%clk 0:02:57.7]} 11.
a3 {[%clk 0:02:48.6]} 11... a6 {[%clk 0:02:58]} 12. O-O-O {[%clk 0:02:42.4]}
12... b5 {[%clk 0:02:52.6]} 13. Na2 {[%clk 0:02:41.6]} 13... a5 {[%clk
0:02:49.8]} 14. c3 {[%clk 0:02:28]} 14... Rhb8 {[%clk 0:02:49]} 15. h4 {[%clk
0:02:24.4]} 15... b4 {[%clk 0:02:33.8]} 16. cxb4 {[%clk 0:02:25.3]} 16... axb4
{[%clk 0:02:33.7]} 17. Nxb4 {[%clk 0:02:23.7]} 17... Nxb4 {[%clk 0:02:14.1]} 18.
axb4 {[%clk 0:02:24.6]} 18... Rxb4 {[%clk 0:02:02.7]} 19. Nc3 {[%clk 0:01:55.3]}
19... Nd7 {[%clk 0:01:51.9]} 20. Kc2 {[%clk 0:01:53.3]} 20... Rab8 {[%clk
0:01:42.4]} 21. Rb1 {[%clk 0:01:51.2]} 21... Bc5 {[%clk 0:01:39.6]} 22. Bxc5+
{[%clk 0:01:50.4]} 22... Nxc5 {[%clk 0:01:39.3]} 23. Rhd1 {[%clk 0:01:48.3]}
23... Nb3 {[%clk 0:01:38.2]} 24. Na2 {[%clk 0:01:46]} 24... Nd4+ {[%clk
0:01:37.2]} 25. Kd3 {[%clk 0:01:38]} 25... Rxb2 {[%clk 0:01:36.4]} 26. Nc3
{[%clk 0:01:36.3]} 26... Rxb1 {[%clk 0:01:23.6]} 27. Rxb1 {[%clk 0:01:37.2]}
27... Rxb1 {[%clk 0:01:21.7]} 28. Nxb1 {[%clk 0:01:38.1]} 28... Kd6 {[%clk
0:01:15.2]} 29. Nd2 {[%clk 0:01:33.9]} 29... Kc5 {[%clk 0:01:10.7]} 30. Nb1
{[%clk 0:01:32.4]} 30... Nc6 {[%clk 0:01:05.7]} 31. Kc3 {[%clk 0:01:29]} 31...
Nd4 {[%clk 0:00:57.7]} 32. Kd3 {[%clk 0:01:27.7]} 32... Kb4 {[%clk 0:00:55.5]}
33. Nc3 {[%clk 0:01:24.3]} 33... c5 {[%clk 0:00:52.8]} 34. Nd1 {[%clk
0:01:18.1]} 34... c4+ {[%clk 0:00:50.5]} 35. Kd2 {[%clk 0:01:18.3]} 35... Kb3
{[%clk 0:00:47.7]} 36. Nc3 {[%clk 0:01:16.6]} 36... Kb2 {[%clk 0:00:39.6]} 37.
Na4+ {[%clk 0:01:10.8]} 37... Ka3 {[%clk 0:00:37.7]} 38. Nc3 {[%clk 0:01:01]}
38... Kb3 {[%clk 0:00:37.5]} 39. h5 {[%clk 0:00:59.7]} 39... h6 {[%clk
0:00:36.8]} 40. Nd1 {[%clk 0:00:57.7]} 40... Nb5 {[%clk 0:00:34.9]} 41. Ne3
{[%clk 0:00:54.4]} 41... c3+ {[%clk 0:00:34.2]} 42. Kd3 {[%clk 0:00:54.4]} 42...
Nd4 {[%clk 0:00:31.2]} 43. Nc4 {[%clk 0:00:50.1]} 43... c2 {[%clk 0:00:30]} 44.
Nd2+ {[%clk 0:00:50.1]} 44... Kb2 {[%clk 0:00:28.8]} 45. Nc4+ {[%clk 0:00:49.9]}
45... Ka2 {[%clk 0:00:21.1]} 46. Kd2 {[%clk 0:00:49.9]} 46... Kb3 {[%clk
0:00:17.8]} 47. Nxe5 {[%clk 0:00:40]} 47... Nb5 {[%clk 0:00:08.7]} 48. Nd3
{[%clk 0:00:38.2]} 48... Na3 {[%clk 0:00:08.1]} 49. Nc1+ {[%clk 0:00:34.5]}
49... Kb2 {[%clk 0:00:08]} 50. Nd3+ {[%clk 0:00:33]} 50... Kb1 {[%clk
0:00:08.5]} 51. f4 {[%clk 0:00:23.7]} 51... Nc4+ {[%clk 0:00:08.5]} 52. Kc3
{[%clk 0:00:22.7]} 52... Ne3 {[%clk 0:00:06.2]} 53. Kd2 {[%clk 0:00:20.9]} 53...
Nxg2 {[%clk 0:00:05.7]} 54. f5 {[%clk 0:00:20.2]} 54... exf5 {[%clk 0:00:05.9]}
55. e5 {[%clk 0:00:20.4]} 55... Nf4 {[%clk 0:00:04.5]} 56. Nc1 {[%clk 0:00:20]}
56... Ne6 {[%clk 0:00:02.1]} 57. Nd3 {[%clk 0:00:20.1]} 57... Nf4 {[%clk
0:00:01.9]} 58. Nc1 {[%clk 0:00:21]} 58... Nxh5 {[%clk 0:00:02.3]} 59. e6 {[%clk
0:00:20.7]} 59... Nf6 {[%clk 0:00:02.3]} 60. e7 {[%clk 0:00:21.4]} 60... h5
{[%clk 0:00:02.1]} 61. Ne2 {[%clk 0:00:20.8]} 61... h4 {[%clk 0:00:02.7]} 62.
Nc3+ {[%clk 0:00:21.3]} 62... Kb2 {[%clk 0:00:02.4]} 63. Ne2 {[%clk 0:00:22.1]}
63... h3 {[%clk 0:00:01.6]} 64. e8=Q {[%clk 0:00:16.8]} 64... h2 {[%clk
0:00:02.5]} 65. Qb5+ {[%clk 0:00:15.6]} 1-0